fUST/lending_fUST_20260519
["ID","MTS","AMOUNT","RATE_DAILY","PERIOD"]
[422644243,1779204638000,-500.0,8.219e-05,2]
[422644272,1779204638000,-500.0,8.219e-05,2]
[422644249,1779204638000,-51.89303515,8.219e-05,2]
[422644262,1779204638000,-500.34115769,8.219e-05,2]
[422644252,1779204638000,-448.51145587,8.219e-05,2]
[422644275,1779204638000,-508.54646338,8.219e-05,2]
[422644277,1779204638000,-500.6109112,8.219e-05,2]
[422644280,1779204638000,-500.11831638,8.219e-05,2]
[422644247,1779204638000,-500.65509554,8.219e-05,2]
[422644237,1779204638000,-501.20968215,8.219e-05,2]
[422644222,1779204638000,-500.92177631,8.219e-05,2]
[422644233,1779204638000,-203.11483596,8.219e-05,2]
[422644220,1779204638000,-500.31967334,8.219e-05,2]
[422644218,1779204638000,-96.86627944,8.219e-05,2]
[422644216,1779204638000,-252.192,8.219e-05,2]
[422644231,1779204638000,-500.45450309,8.219e-05,2]
[422644229,1779204638000,-500.87388891,8.219e-05,2]
[422644227,1779204638000,-276.25000522,8.219e-05,2]
[422644213,1779204638000,-150.94172056,8.219e-05,2]
[422644224,1779204638000,-223.74999478,8.219e-05,2]
[422644206,1779204638000,-96.98846176,8.219e-05,2]
[422644210,1779204638000,-500.0,8.219e-05,2]
[422644211,1779204638000,-500.09374887,8.219e-05,2]
[422644208,1779204638000,-500.43227642,8.219e-05,2]
[422644267,1779204638000,-500.0,8.219e-05,2]
[422644235,1779204638000,-297.94373433,8.219e-05,2]
[422644265,1779204638000,-500.46598108,8.219e-05,2]
[422644245,1779204638000,-500.0,8.219e-05,2]
[422644293,1779204638000,-500.09147141,8.219e-05,2]
[422644270,1779204638000,-500.0,8.219e-05,2]
[422644323,1779204638000,-500.53205988,8.219e-05,2]
[422644320,1779204638000,-222.53556607,8.219e-05,2]
[422644318,1779204638000,-460.4,8.219e-05,2]
[422644316,1779204638000,-500.25428911,8.219e-05,2]
[422644322,1779204638000,-500.3454183,8.219e-05,2]
[422644317,1779204638000,-501.01637424,8.219e-05,2]
[422644315,1779204638000,-500.31710635,8.219e-05,2]
[422644314,1779204638000,-500.09576885,8.219e-05,2]
[422644313,1779204638000,-500.28323567,8.219e-05,2]
[422644309,1779204638000,-500.1871392,8.219e-05,2]
[422644307,1779204638000,-508.08299884,8.219e-05,2]
[422644308,1779204638000,-500.09831133,8.219e-05,2]
[422644306,1779204638000,-501.05378938,8.219e-05,2]
[422644304,1779204638000,-500.0,8.219e-05,2]
[422644319,1779204638000,-500.3868207,8.219e-05,2]
[422644312,1779204638000,-500.69509597,8.219e-05,2]
[422644296,1779204638000,-500.0,8.219e-05,2]
[422644305,1779204638000,-500.23458358,8.219e-05,2]
[422644298,1779204638000,-500.0,8.219e-05,2]
[422644287,1779204638000,-500.59916814,8.219e-05,2]
[422644284,1779204638000,-500.0,8.219e-05,2]
[422644300,1779204638000,-501.90359133,8.219e-05,2]
[422644321,1779204638000,-540.40333834,8.219e-05,2]
[422644299,1779204638000,-500.0,8.219e-05,2]
[422644282,1779204638000,-500.34839421,8.219e-05,2]
[422644310,1779204638000,-500.37265232,8.219e-05,2]
[422644291,1779204638000,-500.0,8.219e-05,2]
[422644302,1779204638000,-643.9472665,8.219e-05,2]
[422644289,1779204638000,-500.86195404,8.219e-05,2]
[422644311,1779204638000,-500.0,8.219e-05,2]
[422644373,1779204639000,-500.0,8.219e-05,2]
[422644359,1779204639000,-500.81975683,8.219e-05,2]
[422644358,1779204639000,-500.39422215,8.219e-05,2]
[422644357,1779204639000,-500.63197324,8.219e-05,2]
[422644356,1779204639000,-500.34699843,8.219e-05,2]
[422644361,1779204639000,-500.0,8.219e-05,2]
[422644355,1779204639000,-500.86608782,8.219e-05,2]
[422644352,1779204639000,-500.70092507,8.219e-05,2]
[422644353,1779204639000,-500.87477198,8.219e-05,2]
[422644351,1779204639000,-570.72222893,8.219e-05,2]
[422644354,1779204639000,-501.04226827,8.219e-05,2]
[422644360,1779204639000,-500.42606195,8.219e-05,2]
[422644364,1779204639000,-500.0,8.219e-05,2]
[422644362,1779204639000,-501.09186376,8.219e-05,2]
[422644365,1779204639000,-500.19061417,8.219e-05,2]
[422644368,1779204639000,-500.11896023,8.219e-05,2]
[422644369,1779204639000,-1001.62045489,8.219e-05,2]
[422644367,1779204639000,-626.31000665,8.219e-05,2]
[422644371,1779204639000,-500.0,8.219e-05,2]
[422644381,1779204639000,-500.8360014,8.219e-05,2]
[422644383,1779204639000,-500.0,8.219e-05,2]
[422644374,1779204639000,-542.88292235,8.219e-05,2]
[422644346,1779204639000,-502.12667132,8.219e-05,2]
[422644363,1779204639000,-500.31845033,8.219e-05,2]
[422644366,1779204639000,-500.5701153,8.219e-05,2]
[422644334,1779204639000,-500.09694427,8.219e-05,2]
[422644348,1779204639000,-500.0,8.219e-05,2]
[422644370,1779204639000,-500.80360744,8.219e-05,2]
[422644324,1779204639000,-521.9960633,8.219e-05,2]
[422644329,1779204639000,-330.16910875,8.219e-05,2]
[422644328,1779204639000,-500.29858854,8.219e-05,2]
[422644330,1779204639000,-500.27086913,8.219e-05,2]
[422644327,1779204639000,-571.00168393,8.219e-05,2]
[422644325,1779204639000,-501.32398082,8.219e-05,2]
[422644326,1779204639000,-500.20002628,8.219e-05,2]
[422644331,1779204639000,-500.0,8.219e-05,2]
[422644332,1779204639000,-500.42893269,8.219e-05,2]
[422644333,1779204639000,-521.9137912,8.219e-05,2]
[422644340,1779204639000,-500.28130165,8.219e-05,2]
[422644337,1779204639000,-501.34269705,8.219e-05,2]
[422644339,1779204639000,-500.27449917,8.219e-05,2]
[422644338,1779204639000,-500.35707988,8.219e-05,2]
[422644335,1779204639000,-500.93407539,8.219e-05,2]
[422644336,1779204639000,-500.52178949,8.219e-05,2]
[422644341,1779204639000,-500.78409162,8.219e-05,2]
[422644343,1779204639000,-500.0,8.219e-05,2]
[422644342,1779204639000,-500.76506219,8.219e-05,2]
[422644344,1779204639000,-500.49378822,8.219e-05,2]
[422644345,1779204639000,-500.34255936,8.219e-05,2]
[422644347,1779204639000,-500.8254945,8.219e-05,2]
[422644349,1779204639000,-500.0,8.219e-05,2]
[422644372,1779204639000,-500.82564196,8.219e-05,2]
[422644350,1779204639000,-500.0,8.219e-05,2]
[422644376,1779204639000,-501.42367835,8.219e-05,2]
[422644402,1779204639000,-500.0,8.219e-05,2]
[422644412,1779204639000,-500.35308686,8.219e-05,2]
[422644410,1779204639000,-500.0,8.219e-05,2]
[422644421,1779204639000,-500.0,8.219e-05,2]
[422644411,1779204639000,-522.30914106,8.219e-05,2]
[422644413,1779204639000,-500.13188691,8.219e-05,2]
[422644415,1779204639000,-500.0,8.219e-05,2]
[422644419,1779204639000,-500.32878131,8.219e-05,2]
[422644414,1779204639000,-500.0,8.219e-05,2]
[422644418,1779204639000,-500.28988539,8.219e-05,2]
[422644420,1779204639000,-500.0,8.219e-05,2]
[422644406,1779204639000,-500.0,8.219e-05,2]
[422644417,1779204639000,-500.0,8.219e-05,2]
[422644422,1779204639000,-552.47822795,8.219e-05,2]
[422644425,1779204639000,-500.0,8.219e-05,2]
[422644431,1779204639000,-500.8617813,8.219e-05,2]
[422644426,1779204639000,-500.0,8.219e-05,2]
[422644427,1779204639000,-204.319027,8.219e-05,2]
[422644428,1779204639000,-500.0,8.219e-05,2]
[422644429,1779204639000,-500.27271104,8.219e-05,2]
[422644424,1779204639000,-571.59778624,8.219e-05,2]
[422644430,1779204639000,-500.36786109,8.219e-05,2]
[422644432,1779204639000,-605.57508486,8.219e-05,2]
[422644375,1779204639000,-500.38050684,8.219e-05,2]
[422644423,1779204639000,-500.0,8.219e-05,2]
[422644404,1779204639000,-956.05,8.219e-05,2]
[422644416,1779204639000,-500.0,8.219e-05,2]
[422644403,1779204639000,-500.0,8.219e-05,2]
[422644405,1779204639000,-500.25717944,8.219e-05,2]
[422644377,1779204639000,-500.35586286,8.219e-05,2]
[422644378,1779204639000,-500.17848172,8.219e-05,2]
[422644379,1779204639000,-584.41363856,8.219e-05,2]
[422644385,1779204639000,-210.30318688,8.219e-05,2]
[422644384,1779204639000,-500.0,8.219e-05,2]
[422644395,1779204639000,-500.62115766,8.219e-05,2]
[422644391,1779204639000,-500.0,8.219e-05,2]
[422644387,1779204639000,-501.09537604,8.219e-05,2]
[422644389,1779204639000,-500.77346381,8.219e-05,2]
[422644388,1779204639000,-500.0,8.219e-05,2]
[422644393,1779204639000,-500.12863711,8.219e-05,2]
[422644386,1779204639000,-500.9580254,8.219e-05,2]
[422644390,1779204639000,-500.0,8.219e-05,2]
[422644400,1779204639000,-500.0,8.219e-05,2]
[422644401,1779204639000,-500.4544764,8.219e-05,2]
[422644409,1779204639000,-500.65839272,8.219e-05,2]
[422644398,1779204639000,-500.0,8.219e-05,2]
[422644408,1779204639000,-500.0,8.219e-05,2]
[422644399,1779204639000,-588.41988117,8.219e-05,2]
[422644396,1779204639000,-500.0,8.219e-05,2]
[422644407,1779204639000,-500.0,8.219e-05,2]
[422644394,1779204639000,-520.88,8.219e-05,2]
[422644392,1779204639000,-500.93967105,8.219e-05,2]
[422644397,1779204639000,-500.14321407,8.219e-05,2]
[422644479,1779204640000,-611.73042425,8.219e-05,2]
[422644470,1779204640000,-500.0,8.219e-05,2]
[422644478,1779204640000,-500.0,8.219e-05,2]
[422644477,1779204640000,-500.0,8.219e-05,2]
[422644476,1779204640000,-500.0,8.219e-05,2]
[422644465,1779204640000,-500.0,8.219e-05,2]
[422644466,1779204640000,-278.832705,8.219e-05,2]
[422644468,1779204640000,-500.0,8.219e-05,2]
[422644469,1779204640000,-306.35571284,8.219e-05,2]
[422644472,1779204640000,-500.9602523,8.219e-05,2]
[422644471,1779204640000,-586.9124891,8.219e-05,2]
[422644482,1779204640000,-500.0,8.219e-05,2]
[422644467,1779204640000,-500.0,8.219e-05,2]
[422644480,1779204640000,-500.0,8.219e-05,2]
[422644492,1779204640000,-501.46816619,8.219e-05,2]
[422644483,1779204640000,-500.12293564,8.219e-05,2]
[422644487,1779204640000,-500.0,8.219e-05,2]
[422644485,1779204640000,-500.84084006,8.219e-05,2]
[422644484,1779204640000,-500.0,8.219e-05,2]
[422644488,1779204640000,-500.0,8.219e-05,2]
[422644481,1779204640000,-500.0,8.219e-05,2]
[422644486,1779204640000,-500.0,8.219e-05,2]
[422644491,1779204640000,-500.3490223,8.219e-05,2]
[422644501,1779204640000,-500.0,8.219e-05,2]
[422644502,1779204640000,-500.0,8.219e-05,2]
[422644493,1779204640000,-500.0,8.219e-05,2]
[422644497,1779204640000,-500.0,8.219e-05,2]
[422644475,1779204640000,-251.82662518,8.219e-05,2]
[422644489,1779204640000,-500.0,8.219e-05,2]
[422644474,1779204640000,-500.0,8.219e-05,2]
[422644435,1779204640000,-500.0,8.219e-05,2]
[422644473,1779204640000,-500.62018151,8.219e-05,2]
[422644433,1779204640000,-500.41617451,8.219e-05,2]
[422644434,1779204640000,-500.0,8.219e-05,2]
[422644436,1779204640000,-500.0,8.219e-05,2]
[422644494,1779204640000,-500.0,8.219e-05,2]
[422644439,1779204640000,-500.0,8.219e-05,2]
[422644437,1779204640000,-573.86219876,8.219e-05,2]
[422644447,1779204640000,-584.30700292,8.219e-05,2]
[422644446,1779204640000,-500.0,8.219e-05,2]
[422644441,1779204640000,-500.0,8.219e-05,2]
[422644444,1779204640000,-500.0,8.219e-05,2]
[422644442,1779204640000,-500.0,8.219e-05,2]
[422644440,1779204640000,-500.35381851,8.219e-05,2]
[422644443,1779204640000,-500.0,8.219e-05,2]
[422644463,1779204640000,-500.0,8.219e-05,2]
[422644438,1779204640000,-2581.34239,8.219e-05,2]
[422644448,1779204640000,-500.0,8.219e-05,2]
[422644461,1779204640000,-500.0,8.219e-05,2]
[422644460,1779204640000,-500.28568459,8.219e-05,2]
[422644449,1779204640000,-500.0,8.219e-05,2]
[422644459,1779204640000,-500.0,8.219e-05,2]
[422644450,1779204640000,-474.05126335,8.219e-05,2]
[422644458,1779204640000,-500.0,8.219e-05,2]
[422644451,1779204640000,-500.0,8.219e-05,2]
[422644453,1779204640000,-94920.85468798,8.219e-05,2]
[422644452,1779204640000,-33549.50287002,8.219e-05,2]
[422644454,1779204640000,-630.71008677,8.219e-05,2]
[422644456,1779204640000,-621.62245342,8.219e-05,2]
[422644462,1779204640000,-503.85396616,8.219e-05,2]
[422644445,1779204640000,-500.0,8.219e-05,2]
[422644495,1779204640000,-500.0,8.219e-05,2]
[422644490,1779204640000,-500.0,8.219e-05,2]
[422644499,1779204640000,-500.18318162,8.219e-05,2]
[422644529,1779204640000,-500.0,8.219e-05,2]
[422644535,1779204640000,-500.0,8.219e-05,2]
[422644534,1779204640000,-500.0,8.219e-05,2]
[422644533,1779204640000,-507.56017552,8.219e-05,2]
[422644532,1779204640000,-500.0,8.219e-05,2]
[422644531,1779204640000,-500.0,8.219e-05,2]
[422644536,1779204640000,-500.0,8.219e-05,2]
[422644542,1779204640000,-316.29034043,8.219e-05,2]
[422644551,1779204640000,-500.0,8.219e-05,2]
[422644541,1779204640000,-500.55203002,8.219e-05,2]
[422644544,1779204640000,-500.0,8.219e-05,2]
[422644543,1779204640000,-785.61,8.219e-05,2]
[422644552,1779204640000,-500.0,8.219e-05,2]
[422644546,1779204640000,-500.0,8.219e-05,2]
[422644547,1779204640000,-500.0,8.219e-05,2]
[422644550,1779204640000,-500.0,8.219e-05,2]
[422644545,1779204640000,-500.21244545,8.219e-05,2]
[422644548,1779204640000,-500.0,8.219e-05,2]
[422644549,1779204640000,-500.0,8.219e-05,2]
[422644556,1779204640000,-500.0,8.219e-05,2]
[422644555,1779204640000,-500.0,8.219e-05,2]
[422644553,1779204640000,-500.0,8.219e-05,2]
[422644559,1779204640000,-500.0,8.219e-05,2]
[422644557,1779204640000,-500.0,8.219e-05,2]
[422644558,1779204640000,-500.0,8.219e-05,2]
[422644554,1779204640000,-403.64018579,8.219e-05,2]
[422644560,1779204640000,-530.29,8.219e-05,2]
[422644498,1779204640000,-500.0,8.219e-05,2]
[422644561,1779204640000,-500.0,8.219e-05,2]
[422644528,1779204640000,-500.0,8.219e-05,2]
[422644530,1779204640000,-500.0,8.219e-05,2]
[422644562,1779204640000,-500.0,8.219e-05,2]
[422644537,1779204640000,-500.0,8.219e-05,2]
[422644526,1779204640000,-500.0,8.219e-05,2]
[422644496,1779204640000,-500.75443154,8.219e-05,2]
[422644504,1779204640000,-500.0,8.219e-05,2]
[422644503,1779204640000,-500.0,8.219e-05,2]
[422644510,1779204640000,-500.21314687,8.219e-05,2]
[422644508,1779204640000,-500.0,8.219e-05,2]
[422644505,1779204640000,-500.0,8.219e-05,2]
[422644509,1779204640000,-500.0,8.219e-05,2]
[422644511,1779204640000,-500.0,8.219e-05,2]
[422644506,1779204640000,-500.18382338,8.219e-05,2]
[422644507,1779204640000,-500.0,8.219e-05,2]
[422644512,1779204640000,-500.89456114,8.219e-05,2]
[422644514,1779204640000,-500.0,8.219e-05,2]
[422644517,1779204640000,-512.80171352,8.219e-05,2]
[422644500,1779204640000,-500.0,8.219e-05,2]
[422644524,1779204640000,-500.27517235,8.219e-05,2]
[422644540,1779204640000,-500.0,8.219e-05,2]
[422644538,1779204640000,-500.0,8.219e-05,2]
[422644539,1779204640000,-500.0,8.219e-05,2]
[422644527,1779204640000,-500.0,8.219e-05,2]
[422644513,1779204640000,-500.0,8.219e-05,2]
[422644521,1779204640000,-500.0,8.219e-05,2]
[422644519,1779204640000,-500.0,8.219e-05,2]
[422644523,1779204640000,-500.0,8.219e-05,2]
[422644520,1779204640000,-500.0,8.219e-05,2]
[422644518,1779204640000,-500.0,8.219e-05,2]
[422644516,1779204640000,-500.0,8.219e-05,2]
[422644525,1779204640000,-500.0,8.219e-05,2]
[422644515,1779204640000,-500.0,8.219e-05,2]
[422644522,1779204640000,-500.0,8.219e-05,2]
[422644603,1779204641000,-500.0,8.219e-05,2]
[422644602,1779204641000,-500.0,8.219e-05,2]
[422644611,1779204641000,-500.0,8.219e-05,2]
[422644604,1779204641000,-500.0,8.219e-05,2]
[422644612,1779204641000,-500.0,8.219e-05,2]
[422644599,1779204641000,-500.0,8.219e-05,2]
[422644601,1779204641000,-500.0,8.219e-05,2]
[422644596,1779204641000,-500.0,8.219e-05,2]
[422644595,1779204641000,-500.0,8.219e-05,2]
[422644597,1779204641000,-500.0,8.219e-05,2]
[422644591,1779204641000,-500.0,8.219e-05,2]
[422644600,1779204641000,-500.0,8.219e-05,2]
[422644606,1779204641000,-500.0,8.219e-05,2]
[422644616,1779204641000,-500.0,8.219e-05,2]
[422644605,1779204641000,-500.0,8.219e-05,2]
[422644607,1779204641000,-500.0,8.219e-05,2]
[422644610,1779204641000,-500.0,8.219e-05,2]
[422644609,1779204641000,-500.0,8.219e-05,2]
[422644613,1779204641000,-500.0,8.219e-05,2]
[422644618,1779204641000,-500.0,8.219e-05,2]
[422644617,1779204641000,-500.0,8.219e-05,2]
[422644615,1779204641000,-500.0,8.219e-05,2]
[422644614,1779204641000,-500.0,8.219e-05,2]
[422644624,1779204641000,-288.37919249,8.219e-05,2]
[422644625,1779204641000,-500.0,8.219e-05,2]
[422644593,1779204641000,-500.0,8.219e-05,2]
[422644619,1779204641000,-500.0,8.219e-05,2]
[422644608,1779204641000,-517.71187255,8.219e-05,2]
[422644590,1779204641000,-500.0,8.219e-05,2]
[422644576,1779204641000,-500.0,8.219e-05,2]
[422644598,1779204641000,-500.0,8.219e-05,2]
[422644623,1779204641000,-500.0,8.219e-05,2]
[422644563,1779204641000,-500.0,8.219e-05,2]
[422644564,1779204641000,-500.0,8.219e-05,2]
[422644565,1779204641000,-500.0,8.219e-05,2]
[422644578,1779204641000,-574.33151158,8.219e-05,2]
[422644567,1779204641000,-500.0,8.219e-05,2]
[422644571,1779204641000,-500.0,8.219e-05,2]
[422644570,1779204641000,-500.0,8.219e-05,2]
[422644577,1779204641000,-485.94879842,8.219e-05,2]
[422644572,1779204641000,-500.0,8.219e-05,2]
[422644566,1779204641000,-500.0,8.219e-05,2]
[422644569,1779204641000,-500.0,8.219e-05,2]
[422644573,1779204641000,-500.0,8.219e-05,2]
[422644592,1779204641000,-500.0,8.219e-05,2]
[422644568,1779204641000,-500.0,8.219e-05,2]
[422644575,1779204641000,-500.0,8.219e-05,2]
[422644579,1779204641000,-500.0,8.219e-05,2]
[422644580,1779204641000,-500.0,8.219e-05,2]
[422644583,1779204641000,-500.0,8.219e-05,2]
[422644581,1779204641000,-513.40574796,8.219e-05,2]
[422644584,1779204641000,-500.0,8.219e-05,2]
[422644586,1779204641000,-469.41879922,8.219e-05,2]
[422644587,1779204641000,-521.39,8.219e-05,2]
[422644582,1779204641000,-500.0,8.219e-05,2]
[422644585,1779204641000,-500.0,8.219e-05,2]
[422644588,1779204641000,-500.0,8.219e-05,2]
[422644589,1779204641000,-500.0,8.219e-05,2]
[422644594,1779204641000,-500.0,8.219e-05,2]
[422644574,1779204641000,-500.0,8.219e-05,2]
[422644622,1779204641000,-500.0,8.219e-05,2]
[422644680,1779204641000,-237.55184392,8.219e-05,2]
[422644621,1779204641000,-500.0,8.219e-05,2]
[422644652,1779204641000,-500.0,8.219e-05,2]
[422644656,1779204641000,-500.0,8.219e-05,2]
[422644665,1779204641000,-500.0,8.219e-05,2]
[422644660,1779204641000,-510.8287112,8.219e-05,2]
[422644658,1779204641000,-604.89121905,8.219e-05,2]
[422644657,1779204641000,-500.0,8.219e-05,2]
[422644659,1779204641000,-500.0,8.219e-05,2]
[422644661,1779204641000,-500.0,8.219e-05,2]
[422644673,1779204641000,-500.0,8.219e-05,2]
[422644668,1779204641000,-500.0,8.219e-05,2]
[422644666,1779204641000,-502.02678661,8.219e-05,2]
[422644671,1779204641000,-500.0,8.219e-05,2]
[422644678,1779204641000,-500.0,8.219e-05,2]
[422644654,1779204641000,-500.0,8.219e-05,2]
[422644674,1779204641000,-632.8,8.219e-05,2]
[422644667,1779204641000,-500.0,8.219e-05,2]
[422644675,1779204641000,-500.0,8.219e-05,2]
[422644672,1779204641000,-500.0,8.219e-05,2]
[422644677,1779204641000,-500.0,8.219e-05,2]
[422644676,1779204641000,-500.0,8.219e-05,2]
[422644679,1779204641000,-500.0,8.219e-05,2]
[422644681,1779204641000,-500.0,8.219e-05,2]
[422644684,1779204641000,-500.0,8.219e-05,2]
[422644682,1779204641000,-500.0,8.219e-05,2]
[422644683,1779204641000,-471.17454477,8.219e-05,2]
[422644685,1779204641000,-500.0,8.219e-05,2]
[422644686,1779204641000,-541.59703694,8.219e-05,2]
[422644620,1779204641000,-500.0,8.219e-05,2]
[422644670,1779204641000,-500.0,8.219e-05,2]
[422644662,1779204641000,-502.4860311,8.219e-05,2]
[422644669,1779204641000,-500.0,8.219e-05,2]
[422644664,1779204641000,-500.0,8.219e-05,2]
[422644655,1779204641000,-500.0,8.219e-05,2]
[422644637,1779204641000,-500.0,8.219e-05,2]
[422644626,1779204641000,-500.0,8.219e-05,2]
[422644638,1779204641000,-1249.4304,8.219e-05,2]
[422644630,1779204641000,-500.0,8.219e-05,2]
[422644628,1779204641000,-500.0,8.219e-05,2]
[422644633,1779204641000,-500.0,8.219e-05,2]
[422644629,1779204641000,-500.0,8.219e-05,2]
[422644635,1779204641000,-500.0,8.219e-05,2]
[422644631,1779204641000,-500.0,8.219e-05,2]
[422644632,1779204641000,-541.63569337,8.219e-05,2]
[422644636,1779204641000,-500.0,8.219e-05,2]
[422644634,1779204641000,-500.0,8.219e-05,2]
[422644640,1779204641000,-500.0,8.219e-05,2]
[422644627,1779204641000,-500.0,8.219e-05,2]
[422644641,1779204641000,-500.0,8.219e-05,2]
[422644650,1779204641000,-500.0,8.219e-05,2]
[422644663,1779204641000,-500.0,8.219e-05,2]
[422644646,1779204641000,-500.0,8.219e-05,2]
[422644645,1779204641000,-500.0,8.219e-05,2]
[422644647,1779204641000,-500.0,8.219e-05,2]
[422644649,1779204641000,-500.0,8.219e-05,2]
[422644653,1779204641000,-500.0,8.219e-05,2]
[422644644,1779204641000,-500.0,8.219e-05,2]
[422644639,1779204641000,-455.13159975,8.219e-05,2]
[422644643,1779204641000,-401.84735635,8.219e-05,2]
[422644651,1779204641000,-500.0,8.219e-05,2]
[422644642,1779204641000,-500.0,8.219e-05,2]
[422644648,1779204641000,-500.0,8.219e-05,2]
[422644727,1779204642000,-774.09,8.219e-05,2]
[422644721,1779204642000,-500.0,8.219e-05,2]
[422644724,1779204642000,-500.0,8.219e-05,2]
[422644723,1779204642000,-500.0,8.219e-05,2]
[422644729,1779204642000,-500.0,8.219e-05,2]
[422644728,1779204642000,-811.08,8.219e-05,2]
[422644726,1779204642000,-500.0,8.219e-05,2]
[422644722,1779204642000,-500.0,8.219e-05,2]
[422644751,1779204642000,-500.0,8.219e-05,2]
[422644718,1779204642000,-500.0,8.219e-05,2]
[422644720,1779204642000,-500.0,8.219e-05,2]
[422644731,1779204642000,-500.0,8.219e-05,2]
[422644725,1779204642000,-500.0,8.219e-05,2]
[422644734,1779204642000,-500.0,8.219e-05,2]
[422644744,1779204642000,-500.0,8.219e-05,2]
[422644736,1779204642000,-278.95692101,8.219e-05,2]
[422644733,1779204642000,-500.0,8.219e-05,2]
[422644735,1779204642000,-500.0,8.219e-05,2]
[422644737,1779204642000,-500.0,8.219e-05,2]
[422644743,1779204642000,-500.0,8.219e-05,2]
[422644740,1779204642000,-500.0,8.219e-05,2]
[422644739,1779204642000,-500.0,8.219e-05,2]
[422644741,1779204642000,-500.0,8.219e-05,2]
[422644742,1779204642000,-500.0,8.219e-05,2]
[422644738,1779204642000,-500.0,8.219e-05,2]
[422644746,1779204642000,-500.0,8.219e-05,2]
[422644757,1779204642000,-500.0,8.219e-05,2]
[422644730,1779204642000,-500.0,8.219e-05,2]
[422644732,1779204642000,-500.0,8.219e-05,2]
[422644719,1779204642000,-500.0,8.219e-05,2]
[422644690,1779204642000,-500.0,8.219e-05,2]
[422644713,1779204642000,-500.0,8.219e-05,2]
[422644688,1779204642000,-500.0,8.219e-05,2]
[422644687,1779204642000,-500.0,8.219e-05,2]
[422644689,1779204642000,-500.0,8.219e-05,2]
[422644692,1779204642000,-500.0,8.219e-05,2]
[422644691,1779204642000,-500.0,8.219e-05,2]
[422644702,1779204642000,-500.0,8.219e-05,2]
[422644703,1779204642000,-500.0,8.219e-05,2]
[422644701,1779204642000,-500.0,8.219e-05,2]
[422644698,1779204642000,-500.0,8.219e-05,2]
[422644700,1779204642000,-500.0,8.219e-05,2]
[422644695,1779204642000,-500.0,8.219e-05,2]
[422644697,1779204642000,-1979.22,8.219e-05,2]
[422644693,1779204642000,-500.0,8.219e-05,2]
[422644712,1779204642000,-500.0,8.219e-05,2]
[422644694,1779204642000,-500.0,8.219e-05,2]
[422644699,1779204642000,-500.0,8.219e-05,2]
[422644705,1779204642000,-500.0,8.219e-05,2]
[422644716,1779204642000,-500.0,8.219e-05,2]
[422644706,1779204642000,-500.0,8.219e-05,2]
[422644717,1779204642000,-500.0,8.219e-05,2]
[422644704,1779204642000,-500.0,8.219e-05,2]
[422644715,1779204642000,-500.0,8.219e-05,2]
[422644707,1779204642000,-500.0,8.219e-05,2]
[422644711,1779204642000,-892.59,8.219e-05,2]
[422644709,1779204642000,-500.0,8.219e-05,2]
[422644708,1779204642000,-629.27,8.219e-05,2]
[422644710,1779204642000,-500.25225835,8.219e-05,2]
[422644714,1779204642000,-640.59,8.219e-05,2]
[422644696,1779204642000,-500.0,8.219e-05,2]
[422644749,1779204642000,-500.0,8.219e-05,2]
[422644775,1779204642000,-500.0,8.219e-05,2]
[422644745,1779204642000,-766.11,8.219e-05,2]
[422644785,1779204642000,-2317.52,8.219e-05,2]
[422644788,1779204642000,-500.0,8.219e-05,2]
[422644786,1779204642000,-500.0,8.219e-05,2]
[422644789,1779204642000,-500.0,8.219e-05,2]
[422644791,1779204642000,-500.0,8.219e-05,2]
[422644787,1779204642000,-500.0,8.219e-05,2]
[422644790,1779204642000,-866.87,8.219e-05,2]
[422644792,1779204642000,-500.0,8.219e-05,2]
[422644793,1779204642000,-500.0,8.219e-05,2]
[422644794,1779204642000,-1587.5,8.219e-05,2]
[422644804,1779204642000,-544.94842422,8.219e-05,2]
[422644796,1779204642000,-500.0,8.219e-05,2]
[422644805,1779204642000,-305.42382141,8.219e-05,2]
[422644784,1779204642000,-318.44797769,8.219e-05,2]
[422644795,1779204642000,-500.0,8.219e-05,2]
[422644799,1779204642000,-12350.34,8.219e-05,2]
[422644797,1779204642000,-364.24441112,8.219e-05,2]
[422644798,1779204642000,-500.0,8.219e-05,2]